fUST/lending_fUST_20250604
["ID","MTS","AMOUNT","RATE_DAILY","PERIOD"]
[364086858,1748993438714,-440.0,0.0001726,2]
[364086859,1748993438724,-440.0,0.0001726,2]
[364086860,1748993438733,-454.26,0.0001726,2]
[364086861,1748993438743,-440.0,0.0001726,2]
[364086862,1748993438756,-440.0,0.0001726,2]
[364086863,1748993438766,-736.27,0.0001726,2]
[364086864,1748993438776,-704.05,0.0001726,2]
[364086865,1748993438785,-440.0,0.0001726,2]
[364086866,1748993438796,-440.0,0.0001726,2]
[364086867,1748993438806,-440.0,0.0001726,2]
[364086868,1748993438816,-741.32313444,0.00017444,2]
[364086869,1748993438825,-2683.78967781,0.00017452,2]
[364086870,1748993438835,-1064.54710437,0.00017458,2]
[364086871,1748993438845,-1000.0,0.00017458,2]
[364086872,1748993438855,-804.41326638,0.00017458,2]
[364086873,1748993438864,-550.77853482,0.00017458,2]
[364086874,1748993438876,-440.0,0.00017534,2]
[364086876,1748993439025,-440.0,0.00017534,2]
[364086878,1748993439034,-440.0,0.00017534,2]
[364086880,1748993439044,-440.0,0.00017534,2]
[364086882,1748993439054,-440.0,0.00017534,2]
[364086884,1748993439063,-803.68,0.00017534,2]
[364086886,1748993439073,-440.0,0.00017534,2]
[364086888,1748993439082,-440.0,0.00017534,2]
[364086890,1748993439091,-610.37,0.00017534,2]
[364086892,1748993439100,-440.0,0.00017534,2]
[364086894,1748993439110,-440.0,0.00017534,2]
[364086896,1748993439119,-440.0,0.00017534,2]
[364086898,1748993439129,-440.0,0.00017534,2]
[364086900,1748993439139,-841.19,0.00017534,2]
[364086902,1748993439148,-440.0,0.00017534,2]
[364086904,1748993439161,-252.52692179,0.00017534,2]
[364086906,1748993439170,-440.0,0.00017534,2]
[364086908,1748993439179,-440.0,0.00017534,2]
[364086910,1748993439189,-390.0,0.00017534,2]
[364086912,1748993439200,-440.0,0.00017534,2]
[364086914,1748993439209,-440.0,0.00017534,2]
[364086916,1748993439219,-440.0,0.00017534,2]
[364086919,1748993439230,-390.0,0.00017534,2]
[364086921,1748993439240,-440.0,0.00017534,2]
[364086923,1748993439253,-440.0,0.00017534,2]
[364086925,1748993439263,-440.0,0.00017534,2]
[364086927,1748993439272,-815.99,0.00017534,2]
[364086928,1748993439281,-440.0,0.00017534,2]
[364086930,1748993439291,-440.0,0.00017534,2]
[364086931,1748993439300,-440.0,0.00017534,2]
[364086932,1748993439310,-454.26,0.00017534,2]
[364086933,1748993439320,-440.0,0.00017534,2]
[364086934,1748993439330,-440.0,0.00017534,2]
[364086935,1748993439340,-736.27,0.00017534,2]
[364086936,1748993439350,-704.05,0.00017534,2]
[364086937,1748993439360,-440.0,0.00017534,2]
[364086938,1748993439369,-370.19,0.00017534,2]
[364086939,1748993439379,-390.0,0.00017534,2]
[364086940,1748993439389,-151.0,0.000176,2]
[364086941,1748993439399,-2683.78967781,0.00017728,2]
[364086942,1748993439409,-500.0,0.00017743,2]
[364086943,1748993439419,-390.0,0.00017808,2]
[364086945,1748993439430,-390.0,0.00017808,2]
[364086946,1748993439440,-440.0,0.00017808,2]
[364086947,1748993439451,-440.0,0.00017808,2]
[364086948,1748993439461,-440.0,0.00017808,2]
[364086949,1748993439471,-803.68,0.00017808,2]
[364086950,1748993439481,-440.0,0.00017808,2]
[364086951,1748993439491,-440.0,0.00017808,2]
[364086953,1748993439505,-610.37,0.00017808,2]
[364086955,1748993439515,-440.0,0.00017808,2]
[364086957,1748993439526,-440.0,0.00017808,2]
[364086959,1748993439536,-440.0,0.00017808,2]
[364086961,1748993439545,-440.0,0.00017808,2]
[364086963,1748993439555,-841.19,0.00017808,2]
[364086965,1748993439565,-390.0,0.00017808,2]
[364086967,1748993439575,-412.88,0.00017808,2]
[364086969,1748993439585,-440.0,0.00017808,2]
[364086971,1748993439595,-440.0,0.00017808,2]
[364086973,1748993439605,-390.0,0.00017808,2]
[364086975,1748993439615,-440.0,0.00017808,2]
[364086977,1748993439624,-390.0,0.00017808,2]
[364086979,1748993439634,-440.0,0.00017808,2]
[364086981,1748993439644,-390.0,0.00017808,2]
[364086983,1748993439654,-815.99,0.00017808,2]
[364086985,1748993439663,-353.2,0.00017808,2]
[364086987,1748993439674,-440.0,0.00017808,2]
[364086989,1748993439683,-440.0,0.00017808,2]
[364086991,1748993439693,-454.26,0.00017808,2]
[364086993,1748993439703,-440.0,0.00017808,2]
[364086995,1748993439712,-499.45,0.00017808,2]
[364086997,1748993439722,-736.27,0.00017808,2]
[364086999,1748993439732,-704.05,0.00017808,2]
[364087002,1748993439742,-390.0,0.00017808,2]
[364087004,1748993439764,-500.0,0.00017842,2]
[364087006,1748993439775,-500.0,0.00017842,2]
[364087009,1748993439786,-500.0,0.00017842,2]
[364087011,1748993439796,-500.0,0.00017842,2]
[364087013,1748993439807,-500.0,0.00017842,2]
[364087015,1748993439817,-500.0,0.00017842,2]
[364087017,1748993439827,-193.0,0.00017866,2]
[364087019,1748993439838,-420.0,0.00017866,2]
[364087021,1748993439849,-420.0,0.00017866,2]
[364087023,1748993439859,-493.81442364,0.00017914,2]
[364087025,1748993439870,-443.13339299,0.00017914,2]
[364087027,1748993439881,-464.88976482,0.00017914,2]
[364087029,1748993439891,-500.0,0.00017948,2]
[364087031,1748993439901,-500.0,0.00017948,2]
[364087033,1748993439911,-500.0,0.00017948,2]
[364087035,1748993439922,-1680.0,0.00017955,2]
[364087037,1748993439932,-182.95,0.00018,2]
[364087039,1748993439943,-182.95,0.00018,2]
[364087042,1748993439954,-2683.78967781,0.00018003,2]
[364087044,1748993439963,-155.0,0.00018081,2]
[364087045,1748993439974,-440.0,0.00018082,2]
[364087048,1748993439983,-390.0,0.00018082,2]
[364087050,1748993439994,-390.0,0.00018082,2]
[364087051,1748993440004,-803.68,0.00018082,2]
[364087053,1748993440014,-511.35,0.00018082,2]
[364087055,1748993440024,-440.0,0.00018082,2]
[364087057,1748993440034,-610.37,0.00018082,2]
[364087059,1748993440044,-440.0,0.00018082,2]
[364087061,1748993440054,-440.0,0.00018082,2]
[364087063,1748993440064,-440.0,0.00018082,2]
[364087065,1748993440074,-440.0,0.00018082,2]
[364087067,1748993440084,-841.19,0.00018082,2]
[364087069,1748993440095,-440.0,0.00018082,2]
[364087071,1748993440105,-440.0,0.00018082,2]
[364087073,1748993440115,-440.0,0.00018082,2]
[364087075,1748993440126,-440.0,0.00018082,2]
[364087077,1748993440136,-815.99,0.00018082,2]
[364087079,1748993440145,-440.0,0.00018082,2]
[364087081,1748993440159,-440.0,0.00018082,2]
[364087082,1748993440170,-454.26,0.00018082,2]
[364087085,1748993440181,-197.2,0.00018082,2]
[364087086,1748993440191,-736.27,0.00018082,2]
[364087088,1748993440204,-704.05,0.00018082,2]
[364087090,1748993440214,-861.4206246,0.00018082,2]
[364087093,1748993440224,-2683.78967781,0.00018279,2]
[364087094,1748993440235,-1000.0,0.00018291,2]
[364087097,1748993440246,-440.0,0.00018356,2]
[364087099,1748993440255,-803.68,0.00018356,2]
[364087100,1748993440265,-440.0,0.00018356,2]
[364087102,1748993440275,-610.37,0.00018356,2]
[364087104,1748993440286,-488.97384677,0.00018356,2]
[364087106,1748993440296,-440.0,0.00018356,2]
[364087108,1748993440307,-440.0,0.00018356,2]
[364087110,1748993440317,-440.0,0.00018356,2]
[364087113,1748993440327,-841.19,0.00018356,2]
[364087114,1748993440337,-440.0,0.00018356,2]
[364087117,1748993440349,-534.6,0.00018356,2]
[364087118,1748993440358,-440.0,0.00018356,2]
[364087121,1748993440369,-440.0,0.00018356,2]
[364087122,1748993440379,-815.99,0.00018356,2]
[364087124,1748993440389,-440.0,0.00018356,2]
[364087126,1748993440398,-249.78,0.00018356,2]
[364087128,1748993440407,-454.26,0.00018356,2]
[364087130,1748993440417,-736.27,0.00018356,2]
[364087132,1748993440427,-704.05,0.00018356,2]
[364087134,1748993440437,-2540.3678501,0.0001839,2]
[364087136,1748993440447,-500.0,0.0001839,2]
[364087138,1748993440458,-500.0,0.0001839,2]
[364087140,1748993440468,-1000.0,0.0001839,2]
[364087142,1748993440481,-1000.0,0.0001839,2]
[364087144,1748993440491,-530.66870168,0.0001839,2]
[364087146,1748993440502,-151.0,0.000184,2]
[364087148,1748993440512,-1000.0,0.00018496,2]
[364087150,1748993440522,-2683.78967781,0.00018555,2]
[364087152,1748993440532,-440.0,0.00018629,2]
[364087154,1748993440541,-160.0,0.00018629,2]
[364087156,1748993440552,-545.34,0.00018629,2]
[364087158,1748993440562,-430.0,0.00018629,2]
[364087160,1748993440572,-440.0,0.0001863,2]
[364087162,1748993440584,-803.68,0.0001863,2]
[364087164,1748993440594,-452.15,0.0001863,2]
[364087166,1748993440604,-610.37,0.0001863,2]
[364087168,1748993440615,-440.0,0.0001863,2]
[364087170,1748993440624,-174.77,0.0001863,2]
[364087172,1748993440635,-440.0,0.0001863,2]
[364087174,1748993440645,-841.19,0.0001863,2]
[364087176,1748993440655,-440.0,0.0001863,2]
[364087178,1748993440665,-440.0,0.0001863,2]
[364087180,1748993440675,-507.58,0.0001863,2]
[364087182,1748993440685,-815.99,0.0001863,2]
[364087184,1748993440696,-440.0,0.0001863,2]
[364087186,1748993440706,-454.26,0.0001863,2]
[364087188,1748993440716,-736.27,0.0001863,2]
[364087190,1748993440726,-704.05,0.0001863,2]
[364087192,1748993440736,-423.63107087,0.00018631,2]
[364087194,1748993440746,-200.18523208,0.00018658,3]
[364087196,1748993440756,-212.86879254,0.00018727,2]
[364087198,1748993440766,-12670.76136593,0.00018732,2]
[364087200,1748993440776,-160.0,0.00018732,2]
[364087202,1748993440786,-160.0,0.00018732,2]
[364087204,1748993440796,-229.42821335,0.00018732,2]
[364087206,1748993440805,-842.5625,0.00018772,2]
[364087208,1748993440815,-160.0,0.00018772,2]
[364087210,1748993440828,-2683.78967781,0.00018831,2]
[364087212,1748993440838,-1312.66060529,0.000189,2]
[364087214,1748993440848,-440.0,0.00018903,2]
[364087216,1748993440858,-440.0,0.00018904,2]
[364087217,1748993440868,-803.68,0.00018904,2]
[364087218,1748993440878,-610.37,0.00018904,2]
[364087219,1748993440888,-440.0,0.00018904,2]
[364087220,1748993440898,-440.0,0.00018904,2]
[364087221,1748993440908,-841.19,0.00018904,2]
[364087222,1748993440918,-440.0,0.00018904,2]
[364087223,1748993440927,-440.0,0.00018904,2]
[364087224,1748993440937,-815.99,0.00018904,2]
[364087225,1748993440947,-440.0,0.00018904,2]
[364087226,1748993440956,-454.26,0.00018904,2]
[364087227,1748993440966,-736.27,0.00018904,2]
[364087228,1748993440976,-704.05,0.00018904,2]
[364087229,1748993440986,-179.88780653,0.00018913,2]
[364087230,1748993440997,-1000.0,0.00018938,2]
[364087231,1748993441006,-507.66408941,0.00019044,2]
[364087232,1748993441016,-151.0,0.000191,2]
[364087233,1748993441026,-2683.78967781,0.00019107,2]
[364087234,1748993441036,-440.0,0.00019177,2]
[364087235,1748993441099,-440.0,0.00019178,2]
[364087236,1748993441109,-803.68,0.00019178,2]
[364087237,1748993441119,-610.37,0.00019178,2]
[364087238,1748993441129,-440.0,0.00019178,2]
[364087239,1748993441139,-440.0,0.00019178,2]
[364087240,1748993441149,-841.19,0.00019178,2]
[364087241,1748993441162,-440.0,0.00019178,2]
[364087242,1748993441172,-440.0,0.00019178,2]
[364087243,1748993441182,-815.99,0.00019178,2]
[364087244,1748993441191,-440.0,0.00019178,2]
[364087245,1748993441203,-454.26,0.00019178,2]
[364087246,1748993441212,-736.27,0.00019178,2]
[364087247,1748993441222,-704.05,0.00019178,2]
[364087248,1748993441234,-151.0,0.00019178,2]
[364087249,1748993441244,-173.899304,0.00019178,2]
[364087250,1748993441255,-156.587,0.00019233,2]
[364087251,1748993441264,-162.380719,0.00019288,2]
[364087252,1748993441274,-12781.93875942,0.00019329,2]
[364087253,1748993441284,-168.3888056,0.00019343,2]
[364087254,1748993441294,-24900.0,0.00019351,2]
[364087255,1748993441303,-2683.78967781,0.00019383,2]
[364087256,1748993441313,-174.61919141,0.00019398,2]
[364087257,1748993441322,-440.0,0.00019451,2]
[364087258,1748993441332,-440.0,0.00019452,2]
[364087259,1748993441341,-803.68,0.00019452,2]
[364087260,1748993441350,-610.37,0.00019452,2]
[364087261,1748993441360,-440.0,0.00019452,2]
[364087262,1748993441371,-440.0,0.00019452,2]
[364087263,1748993441387,-841.19,0.00019452,2]
[364087264,1748993441397,-440.0,0.00019452,2]
[364087265,1748993441407,-440.0,0.00019452,2]
[364087266,1748993441416,-815.99,0.00019452,2]
[364087267,1748993441426,-440.0,0.00019452,2]
[364087268,1748993441436,-454.26,0.00019452,2]
[364087269,1748993441446,-736.27,0.00019452,2]
[364087270,1748993441455,-704.05,0.00019452,2]
[364087271,1748993441466,-181.08010149,0.00019453,2]
[364087272,1748993441475,-1001.95813943,0.000195,2]
[364087273,1748993441485,-23826.79608638,0.000195,2]
[364087274,1748993441713,-337.02880205,0.00016438,2]
[364087278,1748993441925,-102.97119795,0.00016438,2]
[364087279,1748993441935,-155.13578557,0.00016438,2]
[364087280,1748993441951,-284.86421443,0.00016438,2]
[364087281,1748993441961,-5000.0,0.00016545,2]
[364087282,1748993441971,-6983.8604548,0.000195,2]
[364087283,1748993441982,-187.78006525,0.00019508,2]
[364087284,1748993441992,-587.0,0.00019527,2]
[364087285,1748993442003,-194.72792766,0.00019563,2]
[364087286,1748993442014,-201.93286099,0.00019618,2]
[364087287,1748993442024,-2683.78967781,0.00019659,2]
[364087288,1748993442034,-209.40437684,0.00019673,2]
[364087289,1748993442044,-2351.0,0.00019722,2]
[364087290,1748993442054,-440.0,0.00019725,2]
[364087291,1748993442064,-440.0,0.00019726,2]
[364087292,1748993442075,-803.68,0.00019726,2]
[364087293,1748993442084,-504.03,0.00019726,2]
[364087294,1748993442095,-440.0,0.00019726,2]
[364087295,1748993442105,-841.19,0.00019726,2]
[364087296,1748993442117,-440.0,0.00019726,2]
[364087297,1748993442135,-440.0,0.00019726,2]
[364087298,1748993442146,-815.99,0.00019726,2]
[364087299,1748993442158,-440.0,0.00019726,2]
[364087300,1748993442168,-454.26,0.00019726,2]
[364087301,1748993442178,-736.27,0.00019726,2]
[364087302,1748993442188,-704.05,0.00019726,2]
[364087303,1748993442199,-217.15233878,0.00019728,2]
[364087304,1748993442208,-225.18697532,0.00019783,2]
[364087305,1748993442219,-151.0,0.000198,2]
[364087306,1748993442230,-178.59002559,0.00019803,2]
[364087307,1748993442239,-156.005,0.00019803,2]
[364087308,1748993442250,-233.51889341,0.00019838,2]
[364087309,1748993442260,-2540.3678501,0.00019893,2]
[364087310,1748993442270,-242.15909246,0.00019893,2]
[364087311,1748993442280,-2683.78967781,0.00019934,2]
[364087312,1748993442289,-251.11897888,0.00019948,2]
[364087313,1748993442299,-500.17158744,0.00019973,2]
[364087314,1748993442308,-163.80195302,0.00019973,2]
[364087315,1748993442318,-353.62005715,0.00019973,2]
[364087316,1748993442328,-525.58676027,0.00019973,2]
[364087317,1748993442337,-500.0,0.00019973,2]
[364087318,1748993442348,-440.0,0.00019999,2]
[364087319,1748993442358,-160.0,0.00019999,2]
[364087320,1748993442368,-500.0,0.00019999,2]
[364087321,1748993442378,-500.0,0.00019999,2]
[364087322,1748993442387,-582.65372841,0.00019999,2]
[364087323,1748993442397,-500.0,0.00019999,2]
[364087324,1748993442407,-500.0,0.00019999,2]
[364087325,1748993442417,-500.0,0.00019999,2]
[364087326,1748993442428,-610.08083387,0.00019999,2]
[364087327,1748993442438,-408.08347866,0.00019999,2]
[364087328,1748993442449,-500.0,0.00019999,2]
[364087329,1748993442459,-500.0,0.00019999,2]
[364087330,1748993442469,-500.0,0.00019999,2]
[364087331,1748993442479,-500.0,0.00019999,2]
[364087332,1748993442490,-500.0,0.00019999,2]
[364087333,1748993442499,-500.0,0.00019999,2]
[364087334,1748993442509,-535.56758073,0.00019999,2]
[364087335,1748993442519,-378.56103735,0.00019999,2]
[364087337,1748993442529,-500.0,0.00019999,2]
[364087338,1748993442539,-392.60563126,0.00019999,2]
[364087339,1748993442549,-500.0,0.00019999,2]
[364087340,1748993442559,-500.0,0.00019999,2]
[364087341,1748993442570,-500.0,0.00019999,2]
[364087342,1748993442580,-500.0,0.00019999,2]
[364087343,1748993442590,-500.0,0.00019999,2]
[364087344,1748993442600,-500.0,0.00019999,2]
[364087345,1748993442610,-500.0,0.00019999,2]
[364087346,1748993442621,-500.0,0.00019999,2]
[364087347,1748993442631,-500.0,0.00019999,2]
[364087349,1748993442640,-500.0,0.00019999,2]
[364087350,1748993442650,-264.00236319,0.00019999,2]
[364087351,1748993442660,-500.0,0.00019999,2]
[364087352,1748993442670,-500.0,0.00019999,2]
[364087353,1748993442680,-500.0,0.00019999,2]
[364087354,1748993442690,-500.0,0.00019999,2]
[364087355,1748993442699,-500.0,0.00019999,2]
[364087356,1748993442709,-500.0,0.00019999,2]
[364087357,1748993442718,-500.0,0.00019999,2]
[364087358,1748993442728,-313.33323584,0.00019999,2]
[364087359,1748993442737,-500.0,0.00019999,2]
[364087360,1748993442747,-500.0,0.00019999,2]
[364087361,1748993442759,-500.0,0.00019999,2]
[364087362,1748993442770,-500.0,0.00019999,2]
[364087363,1748993442780,-500.0,0.00019999,2]
[364087364,1748993442791,-500.0,0.00019999,2]
[364087365,1748993442801,-500.0,0.00019999,2]
[364087366,1748993442811,-500.0,0.00019999,2]
[364087367,1748993442820,-500.0,0.00019999,2]
[364087369,1748993442830,-500.0,0.00019999,2]
[364087370,1748993442840,-500.0,0.00019999,2]
[364087372,1748993442850,-638.41914186,0.00019999,2]
[364087374,1748993442860,-500.0,0.00019999,2]
[364087376,1748993442870,-500.0,0.00019999,2]
[364087378,1748993442880,-500.0,0.00019999,2]
[364087379,1748993442890,-500.0,0.00019999,2]
[364087380,1748993442900,-211.87660772,0.00019999,2]
[364087381,1748993442910,-500.0,0.00019999,2]
[364087382,1748993442920,-500.0,0.00019999,2]
[364087383,1748993442930,-500.0,0.00019999,2]
[364087384,1748993442940,-500.0,0.00019999,2]
[364087385,1748993442950,-500.0,0.00019999,2]
[364087386,1748993442961,-500.0,0.00019999,2]
[364087387,1748993442971,-218.6202447,0.00019999,2]
[364087388,1748993442981,-500.0,0.00019999,2]
[364087389,1748993442993,-500.0,0.00019999,2]
[364087390,1748993443004,-500.0,0.00019999,2]
[364087391,1748993443014,-500.0,0.00019999,2]
[364087392,1748993443024,-500.0,0.00019999,2]
[364087393,1748993443033,-500.0,0.00019999,2]
[364087394,1748993443043,-409.02410236,0.00019999,2]
[364087395,1748993443052,-500.0,0.00019999,2]
[364087396,1748993443062,-500.0,0.00019999,2]
[364087397,1748993443072,-500.0,0.00019999,2]
[364087398,1748993443082,-500.0,0.00019999,2]
[364087399,1748993443092,-500.0,0.00019999,2]
[364087400,1748993443101,-500.0,0.00019999,2]
[364087401,1748993443111,-500.0,0.00019999,2]
[364087402,1748993443121,-500.0,0.00019999,2]
[364087403,1748993443131,-500.0,0.00019999,2]
[364087404,1748993443141,-500.0,0.00019999,2]
[364087405,1748993443151,-500.0,0.00019999,2]
[364087406,1748993443166,-500.0,0.00019999,2]
[364087407,1748993443176,-500.0,0.00019999,2]
[364087408,1748993443186,-423.45501247,0.00019999,2]
[364087409,1748993443196,-500.0,0.00019999,2]
[364087410,1748993443207,-500.0,0.00019999,2]
[364087411,1748993443216,-550.0,0.00019999,2]
[364087412,1748993443227,-500.0,0.00019999,2]
[364087413,1748993443239,-500.0,0.00019999,2]
[364087414,1748993443249,-500.0,0.00019999,2]
[364087415,1748993443259,-500.0,0.00019999,2]
[364087416,1748993443269,-500.0,0.00019999,2]
[364087417,1748993443278,-500.0,0.00019999,2]
[364087418,1748993443288,-500.0,0.00019999,2]
[364087419,1748993443299,-500.0,0.00019999,2]
[364087420,1748993443309,-500.0,0.00019999,2]
[364087421,1748993443319,-500.0,0.00019999,2]
[364087422,1748993443329,-500.0,0.00019999,2]
[364087423,1748993443340,-500.0,0.00019999,2]
[364087424,1748993443350,-500.0,0.00019999,2]
[364087425,1748993443360,-500.0,0.00019999,2]
[364087426,1748993443370,-500.0,0.00019999,2]
[364087428,1748993443380,-500.0,0.00019999,2]
[364087429,1748993443390,-500.0,0.00019999,2]
[364087430,1748993443400,-500.0,0.00019999,2]
[364087431,1748993443410,-214121.64558907,0.0002,2]
[364087432,1748993443426,-440.0,0.0002,2]
[364087433,1748993443436,-803.68,0.0002,2]
[364087434,1748993443446,-440.0,0.0002,2]
[364087435,1748993443456,-841.19,0.0002,2]
[364087436,1748993443466,-440.0,0.0002,2]
[364087438,1748993443476,-75053.37203589,0.0002,2]
[364087440,1748993443486,-1692.05104298,0.0002,2]
[364087441,1748993443496,-440.0,0.0002,2]
[364087442,1748993443506,-815.99,0.0002,2]
[364087443,1748993443516,-440.0,0.0002,2]
[364087444,1748993443533,-454.26,0.0002,2]
[364087445,1748993443545,-242.99262108,0.0002,3]
[364087446,1748993443555,-736.27,0.0002,2]
[364087447,1748993443564,-704.05,0.0002,2]
[364087448,1748993443575,-217.06411404,0.00020003,2]
[364087449,1748993443586,-272.74896,0.00020187,2]
[364087450,1748993443596,-2683.78967781,0.0002021,2]
[364087451,1748993443607,-169.65,0.00020273,2]
[364087452,1748993443617,-803.68,0.00020273,2]
[364087453,1748993443628,-440.0,0.00020273,2]
[364087454,1748993443638,-440.0,0.00020273,2]
[364087455,1748993443648,-841.19,0.00020273,2]
[364087456,1748993443658,-379.3,0.00020273,2]
[364087457,1748993443668,-440.0,0.00020273,2]
[364087458,1748993443679,-815.99,0.00020273,2]
[364087459,1748993443689,-440.0,0.00020273,2]
[364087460,1748993443699,-454.26,0.00020273,2]
[364087461,1748993443709,-736.27,0.00020273,2]
[364087462,1748993443719,-704.05,0.00020273,2]
[364087463,1748993443730,-900.0,0.00020328,2]
[364087464,1748993443740,-2683.78967781,0.00020486,3]
[364087465,1748993443751,-151.0,0.000205,3]
[364087466,1748993443762,-151.0,0.000205,4]
[364087467,1748993443868,-803.68,0.00020547,2]
[364087468,1748993443880,-440.0,0.00020547,2]
[364087469,1748993443890,-440.0,0.00020547,2]
[364087471,1748993443900,-841.19,0.00020547,2]
[364087473,1748993443909,-440.0,0.00020547,2]
[364087474,1748993443919,-815.99,0.00020547,2]
[364087476,1748993443928,-485.98,0.00020547,2]
[364087478,1748993443938,-454.26,0.00020547,2]
[364087480,1748993443948,-736.27,0.00020547,2]
[364087481,1748993443958,-704.05,0.00020547,2]
[364087482,1748993443968,-886.66,0.000206,2]
[364087483,1748993443977,-35356.13,0.000206,2]
[364087484,1748993443987,-2417.84,0.000206,2]
[364087485,1748993443997,-2683.78967781,0.00020762,3]
[364087486,1748993444009,-803.68,0.00020821,2]
[364087487,1748993444019,-440.0,0.00020821,2]
[364087488,1748993444028,-440.0,0.00020821,2]
[364087489,1748993444037,-841.19,0.00020821,2]
[364087490,1748993444047,-440.0,0.00020821,2]
[364087491,1748993444057,-815.99,0.00020821,2]
[364087492,1748993444068,-454.26,0.00020821,2]
[364087493,1748993444078,-736.27,0.00020821,2]
[364087494,1748993444087,-704.05,0.00020821,2]
[364087495,1748993444097,-10664.34851827,0.00021,2]
[364087496,1748993444106,-53125.61033578,0.00021,7]
[364087497,1748993444116,-2683.78967781,0.00021038,4]
[364087498,1748993444125,-803.68,0.00021095,2]
[364087499,1748993444135,-440.0,0.00021095,2]
[364087500,1748993444144,-440.0,0.00021095,2]
[364087501,1748993444156,-841.19,0.00021095,2]
[364087502,1748993444172,-440.0,0.00021095,2]
[364087503,1748993444182,-815.99,0.00021095,2]
[364087504,1748993444192,-454.26,0.00021095,2]
[364087505,1748993444203,-736.27,0.00021095,2]
[364087506,1748993444212,-704.05,0.00021095,2]
[364087507,1748993444221,-151.0,0.000211,3]
[364087508,1748993444231,-5000.0,0.00021133,2]
[364087509,1748993444241,-151.0,0.000213,3]
[364087510,1748993444252,-2683.78967781,0.00021314,5]
[364087511,1748993444263,-188.0,0.00021342,2]
[364087512,1748993444272,-803.68,0.00021369,2]
[364087513,1748993444282,-440.0,0.00021369,2]
[364087514,1748993444291,-543.77035792,0.00021369,2]
[364087515,1748993444301,-841.19,0.00021369,2]
[364087516,1748993444310,-223.96497633,0.00021369,2]
[364087517,1748993444319,-815.99,0.00021369,2]
[364087518,1748993444329,-454.26,0.00021369,2]
[364087519,1748993444338,-736.27,0.00021369,2]
[364087520,1748993444347,-704.05,0.00021369,2]
[364087521,1748993444357,-2540.3678501,0.00021397,2]
[364087522,1748993444366,-733.91,0.00021423,2]
[364087523,1748993444375,-900.0,0.00021424,2]
[364087524,1748993444385,-179.88780653,0.00021487,2]
[364087525,1748993444394,-733.91,0.00021523,2]
[364087526,1748993444404,-2683.78967781,0.0002159,5]
[364087527,1748993444413,-151.0,0.000216,4]
[364087528,1748993444423,-733.91,0.00021623,2]
[364087529,1748993444432,-803.68,0.00021643,2]
[364087530,1748993444442,-440.0,0.00021643,2]
[364087531,1748993444452,-841.19,0.00021643,2]
[364087532,1748993444461,-815.99,0.00021643,2]
[364087533,1748993444471,-454.26,0.00021643,2]
[364087534,1748993444481,-736.27,0.00021643,2]
[364087535,1748993444491,-704.05,0.00021643,2]
[364087536,1748993444502,-5902.93689244,0.000217,2]
[364087537,1748993444511,-733.91,0.00021723,2]